[Event "SUNWAY"]
[Date "2016.12.21"]
[Round "7.9"]
[White "Santos Ruiz, Miguel"]
[Black "Vorobiov, Evgeny E."]
[Result "1/2-1/2"]
[WhiteElo "2484"]
[BlackElo "2583"]
[ECO "B94"]
[WhiteFed "ESP"]
[BlackFed "RUS"]
[FCGameId "1826110997"]
[TimeControl "5400+30"]

1. e4 c5 2. Nf3 d6 3. d4 cxd4 4. Nxd4 Nf6 5. Nc3 a6 6. Bg5 Nbd7 7. Qe2 e6 8. g3  Be7 9. Bg2 h6 10. Bxf6 Bxf6 11. O-O-O Qb6 12. Qd2 Ne5 13. Bf1 Bd7 14. f4 Rc8 15.  Nb3 Bc6 16. Qe2 Nd7 17. Nd5 Bxd5 18. exd5 Nc5 19. Kb1 e5 20. Nxc5 Rxc5 21. Qe4  1/2-1/2

[Event "SUNWAY"]
[Date "2016.12.21"]
[Round "7.10"]
[White "Peralta, Fernando"]
[Black "Minko, Vladimir"]
[Result "1/2-1/2"]
[WhiteElo "2574"]
[BlackElo "2429"]
[ECO "E40"]
[WhiteFed "ARG"]
[BlackFed "RUS"]
[FCGameId "-1821694451"]
[TimeControl "5400+30"]

1. d4 {[%clk 1:30:57]} Nf6 {[%clk 1:22:47]} 2. c4 {[%clk 1:31:20]} e6  {[%clk 1:23:12]} 3. Nc3 {[%clk 1:31:45]} Bb4 {[%clk 1:23:37]} 4. e3  {[%clk 1:32:09]} d5 {[%clk 1:23:54]} 5. cxd5 {[%clk 1:31:01]} exd5  {[%clk 1:14:53]} 6. Bd3 {[%clk 1:31:13]} O-O {[%clk 1:14:18]} 7. Ne2  {[%clk 1:31:37]} Bd6 {[%clk 1:08:16]} 8. O-O {[%clk 1:26:45]} c5  {[%clk 1:02:01]} 9. dxc5 {[%clk 1:22:58]} Bxc5 {[%clk 1:02:25]} 10. b3  {[%clk 1:12:57]} Nc6 {[%clk 0:56:53]} 11. Bb2 {[%clk 1:13:07]} a6  {[%clk 0:56:45]} 12. Rc1 {[%clk 1:10:24]} Bd6 {[%clk 0:53:03]} 13. Ng3  {[%clk 0:47:15]} Ng4 {[%clk 0:37:08]} 14. Be2 {[%clk 0:42:22]} Qh4  {[%clk 0:34:30]} 15. Bxg4 {[%clk 0:42:35]} Bxg4 {[%clk 0:34:51]} 16. f3  {[%clk 0:42:31]} Be6 {[%clk 0:30:46]} 17. Nce2 {[%clk 0:42:19]} Rad8  {[%clk 0:27:20]} 18. Qd2 {[%clk 0:33:49]} Rfe8 {[%clk 0:24:33]} 19. f4  {[%clk 0:33:00]} Bg4 {[%clk 0:18:28]} 20. Nd4 {[%clk 0:32:32]} Nxd4  {[%clk 0:18:39]} 21. Bxd4 {[%clk 0:26:23]} Re6 {[%clk 0:11:28]} 22. Qf2  {[%clk 0:12:44]} Rh6 {[%clk 0:08:42]} 23. h3 {[%clk 0:13:10]} Bd7  {[%clk 0:08:32]} 24. Ne2 {[%clk 0:09:23]} Qe7 {[%clk 0:08:57]} 25. Qf3  {[%clk 0:08:44]} Bf5 {[%clk 0:06:50]} 26. Ng3 {[%clk 0:05:56]} Be4  {[%clk 0:06:31]} 27. Nxe4 {[%clk 0:05:49]} Qxe4 {[%clk 0:05:04]} 28. Qxe4  {[%clk 0:03:46]} dxe4 {[%clk 0:05:30]} 29. Rfd1 {[%clk 0:01:28]} Bf8  {[%clk 0:04:58]} 30. Rc7 {[%clk 0:01:26]} b5 {[%clk 0:05:11]} 31. Rdc1  {[%clk 0:01:37]} Re6 {[%clk 0:03:22]} 32. Ra7 {[%clk 0:00:56]} f6  {[%clk 0:03:25]} 33. Kf2 {[%clk 0:00:58]} Rde8 {[%clk 0:02:35]} 34. Ke2  {[%clk 0:00:40]} f5 {[%clk 0:02:26]} 35. Rcc7 {[%clk 0:00:37]} R8e7  {[%clk 0:02:40]} 36. Rxe7 {[%clk 0:00:45]} Bxe7 {[%clk 0:03:05]} 37. g4  {[%clk 0:00:51]} fxg4 {[%clk 0:01:54]} 38. hxg4 {[%clk 0:01:19]} Bf8  {[%clk 0:01:59]} 39. g5 Rc6 {[%clk 0:02:10]} 40. a4 {[%clk 0:30:34]} bxa4  {[%clk 0:30:36]} 41. bxa4 {[%clk 0:30:35]} h6 {[%clk 0:18:46]} 42. gxh6  {[%clk 0:29:04]} Rxh6 {[%clk 0:18:03]} 43. a5 Rh2+ 44. Kf1 {[%clk 0:18:30]} Rh6  {[%clk 0:15:39]} 45. Ke2 {[%clk 0:09:42]} Rc6 46. Kd1 {[%clk 0:07:37]} Kh7  {[%clk 0:08:35]} 47. Rf7 {[%clk 0:06:24]} Rc8 {[%clk 0:08:18]} 48. Rb7  {[%clk 0:06:33]} Rd8 {[%clk 0:07:47]} 49. Kc2 {[%clk 0:04:41]} Rd5  {[%clk 0:06:44]} 50. Bc3 {[%clk 0:01:37]} Rd3 {[%clk 0:05:38]} 51. Ra7  {[%clk 0:01:28]} Rxe3 {[%clk 0:04:09]} 52. Rxa6 {[%clk 0:01:53]} Re2+  {[%clk 0:04:33]} 53. Kb3 {[%clk 0:01:43]} Bc5 {[%clk 0:04:20]} 54. Rc6  {[%clk 0:01:43]} Be3 {[%clk 0:04:09]} 55. Re6 {[%clk 0:00:33]} Bxf4  {[%clk 0:03:06]} 56. a6 Bb8 {[%clk 0:03:21]} 57. Re7 {[%clk 0:00:59]} Re3  {[%clk 0:03:12]} 58. Rxg7+ {[%clk 0:00:33]} Kh6 {[%clk 0:03:41]} 59. Rb7  {[%clk 0:00:35]} Be5 {[%clk 0:03:53]} 60. Rb6+ {[%clk 0:00:40]} Kg5  {[%clk 0:03:19]} 61. Rc6 {[%clk 0:01:06]} Bb8 {[%clk 0:03:17]} 62. Kc4  {[%clk 0:00:37]} Re2 {[%clk 0:03:32]} 63. Bd4 {[%clk 0:00:31]} Ra2  {[%clk 0:03:36]} 64. Kd5 {[%clk 0:00:35]} Ra4 {[%clk 0:03:09]} 65. Re6  {[%clk 0:00:39]} Kf5 {[%clk 0:03:18]} 66. Rf6+ {[%clk 0:00:57]} Kg5  {[%clk 0:03:42]} 67. Rc6 {[%clk 0:00:33]} Kf4 {[%clk 0:03:49]} 68. Rf6+  {[%clk 0:00:38]} Kg5 69. Rf8 {[%clk 0:00:38]} Rxa6 {[%clk 0:03:24]} 70. Rxb8  {[%clk 0:00:59]} Ra5+ {[%clk 0:03:18]} 71. Kxe4 {[%clk 0:01:11]} Kg6  {[%clk 0:03:20]} 72. Rb6+ {[%clk 0:01:05]} Kf7 73. Be5 {[%clk 0:00:41]} Ke7  {[%clk 0:03:29]} 74. Rd6 {[%clk 0:00:39]} Ra2 {[%clk 0:02:55]} 75. Rh6  {[%clk 0:00:55]} Rd2 {[%clk 0:02:52]} 76. Bd4 {[%clk 0:00:45]} Re2+  {[%clk 0:02:59]} 77. Kd5 {[%clk 0:01:09]} Kf7 {[%clk 0:02:33]} 78. Be5  {[%clk 0:01:02]} Rd2+ {[%clk 0:02:34]} 79. Ke4 {[%clk 0:01:29]} Ke7  {[%clk 0:02:42]} 80. Kf5 {[%clk 0:01:26]} Kd7 {[%clk 0:02:57]} 81. Rh7+  {[%clk 0:01:33]} Kc6 {[%clk 0:03:18]} 82. Ke6 {[%clk 0:02:00]} Rd1  {[%clk 0:03:22]} 83. Rh2 {[%clk 0:01:24]} Rc1 {[%clk 0:03:31]} 84. Re2  {[%clk 0:00:46]} Rc4 {[%clk 0:03:51]} 85. Ra2 {[%clk 0:00:34]} Rc1  {[%clk 0:03:48]} 86. Ra8 {[%clk 0:00:40]} Rc5 {[%clk 0:03:52]} 87. Bd4  {[%clk 0:01:00]} Rh5 {[%clk 0:03:57]} 88. Rc8+ {[%clk 0:01:06]} Kb5  {[%clk 0:03:41]} 89. Be5 Rh7 {[%clk 0:02:41]} 90. Kd5 {[%clk 0:01:35]} Rh5  {[%clk 0:02:29]} 91. Rb8+ {[%clk 0:01:39]} Ka5 {[%clk 0:02:39]} 92. Rb1  {[%clk 0:01:46]} Rg5 {[%clk 0:02:46]} 93. Kd4 {[%clk 0:02:05]} Ka6  {[%clk 0:03:00]} 94. Bd6 {[%clk 0:02:28]} Rb5 {[%clk 0:03:05]} 95. Rh1  {[%clk 0:02:27]} Kb6 {[%clk 0:03:23]} 96. Rh6 Rb1 {[%clk 0:03:26]} 97. Bc5+  {[%clk 0:01:02]} Kc7 {[%clk 0:03:49]} 98. Kd5 {[%clk 0:00:41]} Rd1+  {[%clk 0:04:10]} 99. Bd4 {[%clk 0:00:56]} Kd7 {[%clk 0:04:33]} 100. Rh2  {[%clk 0:01:10]} Rd3 {[%clk 0:03:18]} 101. Rh7+ {[%clk 0:00:44]} Kd8  {[%clk 0:03:46]} 102. Ke5 {[%clk 0:01:04]} Kc8 {[%clk 0:03:46]} 103. Bc5  {[%clk 0:01:20]} Rd7 {[%clk 0:03:59]} 104. Rh8+ {[%clk 0:00:41]} Kc7  {[%clk 0:04:17]} 105. Bd4 {[%clk 0:00:38]} Kb7 {[%clk 0:04:09]} 106. Rh6  {[%clk 0:00:36]} Kc7 {[%clk 0:04:19]} 107. Rh1 {[%clk 0:00:41]} Rg7  {[%clk 0:04:16]} 108. Kd5 {[%clk 0:00:36]} Rg5+ {[%clk 0:04:21]} 109. Be5+  {[%clk 0:00:47]} Kb6 {[%clk 0:04:49]} 110. Rb1+ {[%clk 0:00:53]} Ka5  {[%clk 0:05:12]} 111. Kd6 {[%clk 0:01:00]} Ka4 {[%clk 0:05:26]} 112. Bd4  {[%clk 0:01:27]} Rb5 {[%clk 0:05:37]} 113. Ra1+ {[%clk 0:01:27]} Kb4  {[%clk 0:05:50]} 114. Bc5+ {[%clk 0:01:49]} Kc4 {[%clk 0:06:04]} 115. Ra4+ Kd3  {[%clk 0:06:15]} 116. Kd5 {[%clk 0:02:15]} Rb3 {[%clk 0:06:30]} 117. Rh4  {[%clk 0:02:25]} Rb8 {[%clk 0:06:50]} 118. Rh3+ {[%clk 0:02:50]} Ke2  {[%clk 0:07:05]} 119. Bd4 {[%clk 0:02:00]} Rd8+ {[%clk 0:07:27]} 120. Kc4  {[%clk 0:02:05]} 1/2-1/2

[Event "SUNWAY"]
[Date "2016.12.21"]
[Round "7.11"]
[White "Postny, Evgeny"]
[Black "Sarkar, Justin"]
[Result "1/2-1/2"]
[WhiteElo "2620"]
[BlackElo "2415"]
[ECO "D70"]
[WhiteFed "ISR"]
[BlackFed "USA"]
[FCGameId "-1285049435"]
[TimeControl "5400+30"]

1. d4 {[%clk 1:28:41]} Nf6 {[%clk 1:23:46]} 2. c4 {[%clk 1:28:43]} g6  {[%clk 1:23:25]} 3. f3 {[%clk 1:29:05]} d5 {[%clk 1:22:39]} 4. cxd5  {[%clk 1:29:28]} Nxd5 {[%clk 1:22:38]} 5. e4 {[%clk 1:29:51]} Nb6  {[%clk 1:23:01]} 6. Nc3 {[%clk 1:30:13]} Bg7 {[%clk 1:23:16]} 7. Be3  {[%clk 1:30:35]} O-O {[%clk 1:23:06]} 8. Qd2 {[%clk 1:31:00]} e5  {[%clk 1:22:37]} 9. d5 c6 {[%clk 1:22:57]} 10. Rd1 {[%clk 1:31:43]} cxd5  {[%clk 1:22:22]} 11. exd5 {[%clk 1:32:08]} Re8 {[%clk 1:20:14]} 12. Ne4 N8d7  {[%clk 1:03:25]} 13. Nh3 {[%clk 1:14:02]} Nf6 {[%clk 1:01:04]} 14. Nhf2  {[%clk 1:06:25]} Nxe4 {[%clk 0:47:37]} 15. fxe4 {[%clk 1:04:55]} f5  {[%clk 0:47:50]} 16. Be2 {[%clk 1:04:48]} f4 {[%clk 0:43:31]} 17. Bc5  {[%clk 1:05:04]} Nd7 {[%clk 0:43:24]} 18. Ba3 {[%clk 0:59:48]} Nf6  {[%clk 0:43:42]} 19. O-O {[%clk 0:59:31]} g5 {[%clk 0:40:13]} 20. d6  {[%clk 0:53:44]} Bd7 {[%clk 0:37:01]} 21. Qb4 Qb6 {[%clk 0:35:36]} 22. Qxb6  {[%clk 0:42:13]} axb6 {[%clk 0:35:59]} 23. Rc1 {[%clk 0:36:11]} Bf8  {[%clk 0:30:08]} 24. Rc7 {[%clk 0:35:06]} Bc6 25. Ng4 {[%clk 0:13:32]} Nxg4  {[%clk 0:23:58]} 26. Bxg4 {[%clk 0:13:57]} Red8 {[%clk 0:20:45]} 27. Be6+  {[%clk 0:12:07]} Kh8 {[%clk 0:21:12]} 28. d7 {[%clk 0:05:39]} Bxa3  {[%clk 0:21:22]} 29. bxa3 {[%clk 0:06:03]} Kg7 {[%clk 0:20:34]} 30. Rd1  {[%clk 0:05:07]} Kf6 {[%clk 0:19:56]} 31. Bf5 {[%clk 0:04:46]} Ke7  {[%clk 0:17:17]} 32. Bxh7 {[%clk 0:01:59]} Rxa3 {[%clk 0:17:21]} 33. Bf5  {[%clk 0:00:56]} Rxa2 {[%clk 0:13:55]} 34. Rc8 {[%clk 0:01:12]} Ra4  {[%clk 0:12:57]} 35. Rd6 {[%clk 0:00:39]} Rxd7 {[%clk 0:03:23]} 36. Rxd7+  {[%clk 0:00:37]} Bxd7 {[%clk 0:03:52]} 37. Rc7 {[%clk 0:01:01]} Rd4  {[%clk 0:04:17]} 38. Rxb7 {[%clk 0:01:10]} Kd8 {[%clk 0:04:45]} 39. Bxd7  {[%clk 0:01:11]} Rxd7 {[%clk 0:05:12]} 40. Rxb6 {[%clk 0:31:36]} Rd4  {[%clk 0:35:30]} 41. Rg6 {[%clk 0:31:39]} 1/2-1/2

[Event "SUNWAY"]
[Date "2016.12.21"]
[Round "7.12"]
[White "Cawdery, Daniel"]
[Black "Epishin, Vladimir"]
[Result "0-1"]
[WhiteElo "2419"]
[BlackElo "2571"]
[ECO "B10"]
[WhiteFed "RSA"]
[BlackFed "RUS"]
[FCGameId "-1999345825"]
[TimeControl "5400+30"]

1. e4 {[%clk 1:30:58]} c6 {[%clk 1:30:16]} 2. c4 {[%clk 1:31:16]} e5  {[%clk 1:29:32]} 3. Nf3 {[%clk 1:31:42]} d6 {[%clk 1:29:51]} 4. d4  {[%clk 1:32:09]} Nd7 {[%clk 1:30:12]} 5. Nc3 {[%clk 1:32:36]} Ngf6  {[%clk 1:30:16]} 6. Be2 {[%clk 1:32:46]} Be7 {[%clk 1:30:40]} 7. O-O  {[%clk 1:32:42]} O-O {[%clk 1:31:01]} 8. h3 {[%clk 1:31:54]} Re8  {[%clk 1:27:53]} 9. Qc2 {[%clk 1:31:38]} exd4 {[%clk 1:23:03]} 10. Nxd4  {[%clk 1:32:06]} Bf8 {[%clk 1:23:25]} 11. Be3 {[%clk 1:30:28]} Nc5  {[%clk 1:20:21]} 12. Bf3 {[%clk 1:30:38]} a5 {[%clk 1:20:18]} 13. Nb3  {[%clk 1:27:43]} Nfd7 {[%clk 1:15:27]} 14. Bg4 {[%clk 1:22:13]} b6  {[%clk 1:11:39]} 15. Rad1 {[%clk 1:12:20]} Qc7 {[%clk 1:06:11]} 16. Bf4  {[%clk 0:50:57]} Ne6 {[%clk 1:00:07]} 17. Bg3 {[%clk 0:40:26]} Ba6  {[%clk 0:59:11]} 18. Nd2 {[%clk 0:40:37]} b5 {[%clk 0:50:11]} 19. Ne2  {[%clk 0:36:05]} Qb6 {[%clk 0:43:08]} 20. b3 {[%clk 0:29:59]} Nf6  {[%clk 0:39:50]} 21. Bxe6 {[%clk 0:25:25]} Rxe6 {[%clk 0:39:59]} 22. Nf4  {[%clk 0:25:38]} Ree8 {[%clk 0:40:02]} 23. Rfe1 {[%clk 0:25:45]} Rac8  {[%clk 0:37:15]} 24. Rc1 {[%clk 0:15:37]} h6 {[%clk 0:35:53]} 25. c5  {[%clk 0:13:33]} Qxc5 {[%clk 0:33:55]} 26. Qxc5 {[%clk 0:13:50]} dxc5  {[%clk 0:34:17]} 27. e5 {[%clk 0:13:48]} Nd7 {[%clk 0:25:15]} 28. e6  {[%clk 0:14:00]} Nf6 {[%clk 0:25:00]} 29. exf7+ {[%clk 0:11:52]} Kxf7  {[%clk 0:24:49]} 30. Nd3 {[%clk 0:12:21]} Rxe1+ {[%clk 0:23:39]} 31. Rxe1  {[%clk 0:12:47]} Kg8 {[%clk 0:22:08]} 32. Ne5 {[%clk 0:12:12]} c4  {[%clk 0:14:22]} 33. Rc1 {[%clk 0:09:12]} Bb4 {[%clk 0:12:10]} 34. Ndf3  {[%clk 0:09:20]} c3 {[%clk 0:11:45]} 35. Nd4 {[%clk 0:08:30]} Nd5  {[%clk 0:05:47]} 36. Nexc6 {[%clk 0:07:54]} Ba3 {[%clk 0:04:36]} 37. Rc2  {[%clk 0:07:19]} Bc5 38. Be5 {[%clk 0:05:06]} Bxd4 {[%clk 0:02:50]} 0-1

[Event "SUNWAY"]
[Date "2016.12.21"]
[Round "7.13"]
[White "Del Rio De Angelis, Salvador G."]
[Black "Garcia Ramos, Daniel"]
[Result "1-0"]
[WhiteElo "2530"]
[BlackElo "2268"]
[ECO "E43"]
[WhiteFed "ESP"]
[BlackFed "ESP"]
[FCGameId "1773154619"]
[TimeControl "5400+30"]

1. d4 {[%clk 1:30:51]} Nf6 {[%clk 1:30:56]} 2. c4 {[%clk 1:31:12]} e6  {[%clk 1:31:22]} 3. Nc3 {[%clk 1:31:29]} Bb4 {[%clk 1:31:45]} 4. e3  {[%clk 1:31:48]} b6 {[%clk 1:32:09]} 5. Bd3 {[%clk 1:31:53]} Bb7  {[%clk 1:32:31]} 6. Nf3 {[%clk 1:32:15]} O-O {[%clk 1:32:55]} 7. O-O  {[%clk 1:32:34]} d5 8. a3 {[%clk 1:32:43]} Bd6 {[%clk 1:32:26]} 9. b4  {[%clk 1:33:05]} c6 {[%clk 1:16:46]} 10. e4 dxe4 {[%clk 1:15:00]} 11. Nxe4  {[%clk 1:30:48]} Nxe4 {[%clk 1:13:54]} 12. Bxe4 {[%clk 1:31:10]} Nd7 13. c5  {[%clk 0:50:30]} Be7 {[%clk 1:11:58]} 14. Qc2 {[%clk 0:49:41]} Nf6  {[%clk 1:09:43]} 15. Bd3 {[%clk 0:49:49]} h6 {[%clk 1:05:10]} 16. Bb2 Nd5  {[%clk 0:57:23]} 17. Ne5 {[%clk 0:42:05]} Qc7 {[%clk 0:44:18]} 18. Qd2  {[%clk 0:39:33]} Bf6 {[%clk 0:28:31]} 19. f4 g6 {[%clk 0:26:58]} 20. Rae1  {[%clk 0:37:35]} Rad8 21. g4 {[%clk 0:35:08]} g5 {[%clk 0:14:12]} 22. Bb1 Bxe5  {[%clk 0:10:23]} 23. fxe5 {[%clk 0:34:59]} f6 {[%clk 0:09:57]} 24. exf6  {[%clk 0:33:13]} Nf4 {[%clk 0:09:07]} 25. Qe3 {[%clk 0:32:54]} Qf7  {[%clk 0:05:03]} 26. Qe4 {[%clk 0:25:33]} Ba6 {[%clk 0:04:11]} 27. Rxf4  {[%clk 0:19:12]} gxf4 {[%clk 0:01:06]} 28. Bc1 {[%clk 0:19:24]} f3 29. Kf2  {[%clk 0:18:24]} Rd7 {[%clk 0:01:29]} 30. Ba2 {[%clk 0:18:43]} Qxf6  {[%clk 0:01:46]} 31. Bxe6+ {[%clk 0:16:56]} Rdf7 {[%clk 0:00:58]} 32. g5  {[%clk 0:16:11]} hxg5 33. Rg1 {[%clk 0:16:15]} Qh6 {[%clk 0:00:38]} 34. Rxg5+  {[%clk 0:15:28]} Kh8 {[%clk 0:01:08]} 35. Qe5+ {[%clk 0:15:27]} Rg7  {[%clk 0:01:04]} 36. Rh5 {[%clk 0:15:31]} 1-0

[Event "SUNWAY"]
[Date "2016.12.21"]
[Round "7.14"]
[White "Alonso Bouza, Julio Javier"]
[Black "Aroshidze, Levan"]
[Result "0-1"]
[WhiteElo "2365"]
[BlackElo "2517"]
[ECO "B44"]
[WhiteFed "CUB"]
[BlackFed "ESP"]
[FCGameId "1793400982"]
[TimeControl "5400+30"]

1. e4 {[%clk 1:30:49]} c5 {[%clk 1:30:55]} 2. Nf3 e6 {[%clk 1:31:11]} 3. d4  {[%clk 1:31:31]} cxd4 {[%clk 1:31:35]} 4. Nxd4 {[%clk 1:31:55]} Nc6  {[%clk 1:32:00]} 5. Nb5 {[%clk 1:32:16]} d6 {[%clk 1:32:22]} 6. c4  {[%clk 1:32:43]} Nf6 {[%clk 1:32:39]} 7. N1c3 {[%clk 1:32:58]} a6  {[%clk 1:33:00]} 8. Na3 {[%clk 1:33:26]} b6 9. Be2 {[%clk 1:33:09]} Bb7  {[%clk 1:33:45]} 10. O-O {[%clk 1:32:16]} Nb8 11. f3 {[%clk 1:31:22]} Nbd7  {[%clk 1:34:12]} 12. Be3 {[%clk 1:29:59]} Be7 {[%clk 1:34:11]} 13. Rc1  {[%clk 1:25:31]} O-O {[%clk 1:34:28]} 14. Nab1 {[%clk 1:22:18]} Rc8  {[%clk 1:32:51]} 15. Qd2 {[%clk 1:19:47]} Qc7 {[%clk 1:30:17]} 16. Rfd1  {[%clk 1:19:16]} Qb8 17. Bf1 Bd8 {[%clk 1:23:34]} 18. b3 {[%clk 1:09:06]} Bc7  {[%clk 1:21:51]} 19. g3 Rfe8 {[%clk 1:16:55]} 20. Bg2 {[%clk 0:56:07]} Ba8  {[%clk 1:08:18]} 21. a4 {[%clk 0:45:45]} h5 {[%clk 1:01:36]} 22. Bf4  {[%clk 0:35:16]} Ne5 {[%clk 0:46:35]} 23. Kh1 {[%clk 0:22:51]} Nfd7  {[%clk 0:27:09]} 24. Na3 {[%clk 0:15:36]} Nc5 25. Rb1 {[%clk 0:16:05]} h4  {[%clk 0:24:10]} 26. b4 {[%clk 0:08:11]} Ncd7 {[%clk 0:08:47]} 27. a5  {[%clk 0:07:52]} h3 28. Bxh3 {[%clk 0:08:17]} Nxf3 {[%clk 0:08:17]} 29. Qf2  {[%clk 0:06:36]} Nfe5 30. axb6 {[%clk 0:02:00]} Bxb6 {[%clk 0:07:54]} 31. c5  dxc5 {[%clk 0:05:13]} 32. Rxd7 {[%clk 0:02:56]} cxb4 33. Qf1 {[%clk 0:00:57]}  Rxc3 {[%clk 0:05:10]} 34. Bxe5 {[%clk 0:01:18]} Qxe5 {[%clk 0:03:54]} 35. Qxf7+  {[%clk 0:01:46]} Kh7 {[%clk 0:04:19]} 36. Bg2 {[%clk 0:00:45]} Rec8  {[%clk 0:04:15]} 37. Rf1 {[%clk 0:00:32]} bxa3 0-1

[Event "SUNWAY"]
[Date "2016.12.21"]
[Round "7.15"]
[White "Gu, Xiaobing"]
[Black "Golubov, Saveliy"]
[Result "0-1"]
[WhiteElo "2324"]
[BlackElo "2490"]
[ECO "C68"]
[WhiteFed "CHN"]
[BlackFed "RUS"]
[FCGameId "-90752245"]
[TimeControl "5400+30"]

1. e4 e5 2. Nf3 Nc6 3. Bb5 a6 4. Bxc6 dxc6 5. O-O f6 6. d4 exd4 7. Qxd4 Qxd4 8.  Nxd4 c5 9. Ne2 Bd7 10. Nbc3 O-O-O 11. Rd1 Ne7 12. Be3 Ng6 13. Nd5 Ne5 14. b3 Kb8  15. Rd2 Bd6 16. Rad1 Rhe8 17. f3 Be6 18. Ng3 Nc6 19. Nh5 Rg8 20. Bf4 Bf7 21.  Bxd6 Rxd6 22. Nhf4 Rgd8 23. Re1 g5 24. Ne2 Ne7 25. Rd3 Nxd5 26. exd5 Bg6 27. Re3  Bxc2 28. Nc3 c6 29. dxc6 Rxc6 30. Re7 Bg6 31. Ne4 h6 32. Rg7 Bxe4 33. Rxe4 Rd2  34. a4 a5 35. Re3 c4 36. bxc4 Rxc4 37. h4 gxh4 38. Ree7 Rb2 39. Kh2 Rxa4 40. Rg6  Rf4 41. Rxh6 Rxf3 42. Rxh4 Rf5 43. Rh8+ Ka7 44. Kh3 Rg5 45. Rf8 Rgxg2 46. Ree8  Rg6 47. Ra8+ Kb6 48. Rf7 Rb5 49. Kh4 Rb1 0-1

[Event "SUNWAY"]
[Date "2016.12.21"]
[Round "7.16"]
[White "Romanishin, Oleg M"]
[Black "Beerdsen, Thomas"]
[Result "1-0"]
[WhiteElo "2463"]
[BlackElo "2407"]
[ECO "B31"]
[WhiteFed "UKR"]
[BlackFed "NED"]
[FCGameId "198784768"]
[TimeControl "5400+30"]

1. Nf3 {[%clk 1:30:51]} c5 {[%clk 1:28:49]} 2. e4 {[%clk 1:30:34]} Nc6  {[%clk 1:29:13]} 3. Bb5 {[%clk 1:30:56]} g6 {[%clk 1:29:38]} 4. O-O  {[%clk 1:21:48]} Bg7 {[%clk 1:30:03]} 5. c3 {[%clk 1:22:13]} e5 {[%clk 1:30:29]}  6. d3 {[%clk 1:13:57]} Nge7 {[%clk 1:27:41]} 7. Be3 {[%clk 1:13:07]} d6  {[%clk 1:26:01]} 8. d4 {[%clk 1:12:43]} cxd4 {[%clk 1:21:39]} 9. cxd4  {[%clk 1:10:23]} O-O {[%clk 1:22:02]} 10. d5 {[%clk 0:44:08]} Nb8  {[%clk 1:22:01]} 11. Nc3 {[%clk 0:44:11]} h6 {[%clk 1:20:31]} 12. Nd2  {[%clk 0:42:55]} f5 {[%clk 1:16:19]} 13. f3 {[%clk 0:43:21]} a6 {[%clk 1:11:14]}  14. Be2 {[%clk 0:42:41]} Nd7 {[%clk 1:08:12]} 15. Nc4 {[%clk 0:37:07]} f4  {[%clk 1:06:57]} 16. Bf2 {[%clk 0:37:28]} Rf6 {[%clk 1:07:03]} 17. a4  {[%clk 0:32:10]} g5 {[%clk 1:07:22]} 18. a5 {[%clk 0:28:43]} Rg6  {[%clk 1:01:35]} 19. Na4 {[%clk 0:24:23]} h5 {[%clk 0:57:37]} 20. Nab6  {[%clk 0:21:29]} Rb8 {[%clk 0:57:38]} 21. Rc1 {[%clk 0:17:49]} Nf8  {[%clk 0:40:58]} 22. Kh1 {[%clk 0:14:33]} Kh8 {[%clk 0:35:50]} 23. Nxc8  {[%clk 0:12:33]} Nxc8 {[%clk 0:35:07]} 24. Qb3 {[%clk 0:12:05]} Nh7  {[%clk 0:33:11]} 25. Nb6 {[%clk 0:09:45]} g4 {[%clk 0:28:04]} 26. Nxc8  {[%clk 0:07:41]} g3 {[%clk 0:28:18]} 27. Bb6 {[%clk 0:03:37]} Qh4  {[%clk 0:28:13]} 28. Bg1 {[%clk 0:02:12]} Qg5 {[%clk 0:22:20]} 29. h3  {[%clk 0:01:52]} Qh4 {[%clk 0:22:48]} 30. Qb6 {[%clk 0:01:06]} Ng5  {[%clk 0:22:33]} 31. Qd8+ {[%clk 0:00:49]} Kh7 {[%clk 0:22:59]} 32. Qd7  {[%clk 0:00:50]} Rf6 {[%clk 0:15:55]} 33. Ne7 {[%clk 0:01:09]} Rbf8  {[%clk 0:16:22]} 34. Rfd1 {[%clk 0:00:45]} R8f7 {[%clk 0:16:40]} 35. Bf1  {[%clk 0:01:02]} Bf8 {[%clk 0:16:10]} 36. Qxb7 {[%clk 0:00:59]} Bxe7  {[%clk 0:15:08]} 37. Rc7 {[%clk 0:01:06]} Bd8 {[%clk 0:15:36]} 38. Rxf7+  {[%clk 0:01:08]} Rxf7 {[%clk 0:16:02]} 39. Qxa6 {[%clk 0:01:01]} Rg7  {[%clk 0:16:14]} 40. Qc8 {[%clk 0:30:42]} Nxf3 {[%clk 0:45:25]} 41. Bb6  {[%clk 0:27:09]} Bxb6 {[%clk 0:34:01]} 42. axb6 {[%clk 0:27:03]} Ng5  {[%clk 0:34:14]} 43. Rc1 {[%clk 0:20:42]} f3 {[%clk 0:32:33]} 44. Qf5+  {[%clk 0:20:20]} Kh6 {[%clk 0:31:58]} 45. Qf6+ {[%clk 0:16:54]} Kh7  {[%clk 0:31:59]} 46. Rc7 {[%clk 0:16:21]} 1-0

[Event "SUNWAY"]
[Date "2016.12.21"]
[Round "7.17"]
[White "Esplugas Esteve, Vicenc"]
[Black "Anurag, Mhamal"]
[Result "0-1"]
[WhiteElo "2280"]
[BlackElo "2423"]
[ECO "D10"]
[WhiteFed "ESP"]
[BlackFed "IND"]
[FCGameId "2045511797"]
[TimeControl "5400+30"]

1. d4 d5 2. c4 c6 3. Nc3 dxc4 4. e4 b5 5. a4 b4 6. Na2 Nf6 7. e5 Nd5 8. Bxc4 e6  9. Nf3 Be7 10. Bd2 a5 11. Nc1 Nd7 12. Nb3 c5 13. Rc1 N5b6 14. Bb5 c4 15. Bxc4  Nxc4 16. Rxc4 Nb6 17. Rc1 Nxa4 18. Nc5 Bxc5 19. Qxa4+ Bd7 20. Qc2 Be7 21. O-O  O-O 22. Qe4 Bb5 23. Rfe1 a4 24. Qg4 Bd3 25. d5 Bf5 26. Qf4 Qxd5 27. Bxb4 Bxb4  28. Qxb4 Rfb8 29. Qc3 Qb7 30. Qa3 h6 31. Nd4 Be4 32. f3 Bd5 33. Re2 Qa7 34. Qc5  Rc8 35. Qxc8+ Rxc8 36. Rxc8+ Kh7 37. Rd2 f6 38. f4 fxe5 39. fxe5 Qa5 40. Rd1 Qb6  41. Rc2 Bb3 42. Rc6 Qb7 43. Rd2 Bd5 44. Rc3 Qb4 45. Ne2 Qe4 46. Ng3 Qxe5 47. Nf1  Bb3 48. Ne3 Qa5 49. Rdd3 e5 50. Rc1 e4 51. Rd7 Be6 52. Rb7 Qd2 53. Rc3 a3 54.  Nf1 Qd4+ 55. Kh1 Qd1 56. Kg1 a2 57. Rcc7 Qd4+ 0-1

[Event "SUNWAY"]
[Date "2016.12.20"]
[Round "6.1"]
[White "Romanov, Evgeny"]
[Black "Granda Zuniga, Julio E"]
[Result "1-0"]
[WhiteElo "2622"]
[BlackElo "2646"]
[ECO "E18"]
[WhiteFed "RUS"]
[BlackFed "PER"]
[FCGameId "-1441201871"]
[TimeControl "5400+30"]

1. d4 {[%clk 1:22:22]} Nf6 {[%clk 1:30:36]} 2. Nf3 {[%clk 1:22:41]} e6  {[%clk 1:30:21]} 3. c4 {[%clk 1:23:04]} b6 {[%clk 1:29:41]} 4. g3  {[%clk 1:23:23]} Bb7 {[%clk 1:29:26]} 5. Bg2 {[%clk 1:23:45]} Be7  {[%clk 1:29:17]} 6. O-O {[%clk 1:24:06]} O-O {[%clk 1:29:43]} 7. Nc3  {[%clk 1:24:31]} Ne4 {[%clk 1:30:01]} 8. Bd2 {[%clk 1:24:54]} Bf6  {[%clk 1:24:13]} 9. Rc1 {[%clk 1:25:10]} c5 {[%clk 1:19:59]} 10. d5  {[%clk 1:25:20]} exd5 {[%clk 1:19:02]} 11. cxd5 {[%clk 1:25:42]} Bxc3  {[%clk 1:15:03]} 12. Bxc3 {[%clk 1:24:35]} d6 {[%clk 1:10:05]} 13. Be1  {[%clk 1:23:32]} Re8 {[%clk 0:57:55]} 14. Nh4 {[%clk 1:14:15]} Ba6  {[%clk 0:50:53]} 15. f3 {[%clk 1:12:29]} Nf6 {[%clk 0:49:54]} 16. Rf2  {[%clk 1:12:43]} Nbd7 {[%clk 0:49:54]} 17. Bc3 {[%clk 1:06:59]} b5  {[%clk 0:43:47]} 18. b3 {[%clk 1:06:24]} b4 {[%clk 0:43:30]} 19. Ba1  {[%clk 1:06:48]} Ne5 {[%clk 0:42:09]} 20. Qd2 {[%clk 1:04:31]} Bc8  {[%clk 0:28:14]} 21. e4 {[%clk 1:03:02]} Qb6 {[%clk 0:20:56]} 22. h3  {[%clk 1:00:12]} a5 {[%clk 0:18:34]} 23. f4 {[%clk 0:57:17]} Ng6  {[%clk 0:15:55]} 24. e5 {[%clk 0:44:04]} Nxh4 {[%clk 0:16:07]} 25. gxh4  {[%clk 0:31:00]} Nh5 {[%clk 0:16:35]} 26. Bf3 {[%clk 0:27:53]} Ng3  {[%clk 0:16:54]} 27. e6 {[%clk 0:28:14]} fxe6 {[%clk 0:12:02]} 28. dxe6  {[%clk 0:28:27]} Bb7 {[%clk 0:05:08]} 29. f5 {[%clk 0:20:42]} Bxf3  {[%clk 0:05:29]} 30. Qg5 {[%clk 0:20:15]} Ra7 {[%clk 0:01:40]} 31. Qxg3  {[%clk 0:19:03]} Be4 {[%clk 0:01:26]} 32. f6 {[%clk 0:10:01]} Rxe6  {[%clk 0:01:53]} 33. fxg7 {[%clk 0:10:26]} Re8 {[%clk 0:01:54]} 34. Rcf1  {[%clk 0:08:16]} c4 {[%clk 0:02:21]} 35. Kh2 {[%clk 0:08:35]} 1-0